[Event "29. Klatovy A 2023"]
[Site "Klatovy"]
[Date "2023.07.05"]
[Round "5.16"]
[White "Pirklova, Hana"]
[Black "Mametev, Artem"]
[Result "0-1"]
[ECO "C02"]
[WhiteElo "2085"]
[BlackElo "1991"]
[PlyCount "130"]
[EventDate "2023.07.01"]
[EventType "swiss"]
[EventRounds "9"]
[EventCountry "CZE"]
[TimeControl "120+30"]

1. e4 {[%emt 0:00:01]} e6 {[%emt 0:00:05]} 2. d4 {[%emt 0:00:07]} d5 {[%emt 0:00:03]} 3. e5 {[%emt 0:00:11]} c5 {[%emt 0:00:04]} 4. c3 {[%emt 0:00:03]} Nc6 {[%emt 0:00:07]} 5. Nf3 {[%emt 0:00:04]} Bd7 {[%emt 0:00:05]} 6. Be2 {[%emt 0:00:47]} Nge7 {[%emt 0:00:17]} 7. Na3 {[%emt 0:03:02]} cxd4 {[%emt 0:05:15]} 8. Nb5 {[%emt 0:01:38]} Nf5 {[%emt 0:04:14]} 9. Nbxd4 {[%emt 0:00:17]} Nfxd4 {[%emt 0:03:30]} 10. cxd4 {[%emt 0:00:09]} Bb4+ {[%emt 0:02:37]} 11. Bd2 {[%emt 0:00:09]} Qa5 {[%emt 0:04:47]} 12. a3 {[%emt 0:03:48]} Bxd2+ {[%emt 0:00:08]} 13. Qxd2 {[%emt 0:00:05]} Qxd2+ {[%emt 0:00:35]} 14. Kxd2 {[%emt 0:00:05]} Na5 {[%emt 0:00:41]} 15. Ke3 {[%emt 0:06:10]} b5 {[%emt 0:21:21]} 16. Nd2 {[%emt 0:09:14]} Nc4+ {[%emt 0:16:41]} 17. Bxc4 {[%emt 0:00:45]} bxc4 {[%emt 0:00:03]} 18. b3 {[%emt 0:01:04]} c3 {[%emt 0:00:38]} 19. Nb1 {[%emt 0:09:25]} Rb8 {[%emt 0:01:26]} 20. b4 {[%emt 0:00:35]} c2 {[%emt 0:05:39]} 21. Nc3 {[%emt 0:01:29]} Ke7 {[%emt 0:10:41]} 22. Rhc1 {[%emt 0:03:26]} a5 {[%emt 0:01:16]} 23. bxa5 {[%emt 0:10:38]} Rhc8 {[%emt 0:13:09]} 24. Rxc2 {[%emt 0:05:00]} Rb3 {[%emt 0:02:16]} 25. Kd2 {[%emt 0:09:22]} Ra8 {[%emt 0:00:18]} 26. Ne2 {[%emt 0:11:15]} Rxa5 {[%emt 0:01:39]} 27. Rc3 {[%emt 0:00:24]} Rb2+ {[%emt 0:01:31]} 28. Ke3 {[%emt 0:07:00]} Bb5 {[%emt 0:00:36]} 29. Nc1 {[%emt 0:01:55]} Bc4 {[%emt 0:01:36]} 30. Nd3 {[%emt 0:02:59]} Bxd3 {[%emt 0:00:15]} 31. Rxd3 {[%emt 0:00:07]} f6 {[%emt 0:00:41]} 32. Rc1 {[%emt 0:04:43]} fxe5 {[%emt 0:01:39]} 33. dxe5 {[%emt 0:00:05]} Ra2 {[%emt 0:04:34]} 34. Rc7+ {[%emt 0:02:46]} Kf8 {[%emt 0:00:08]} 35. Rcc3 {[%emt 0:03:14]} Ra4 {[%emt 0:05:42]} 36. Rc8+ {[%emt 0:11:26]} Kf7 {[%emt 0:00:10]} 37. Rc7+ {[%emt 0:00:51]} Kg6 {[%emt 0:00:32]} 38. f4 {[%emt 0:01:18]} Rxg2 {[%emt 0:01:10]} 39. Re7 {[%emt 0:01:14]} Rxh2 {[%emt 0:01:05]} 40. Rd1 {[%emt 0:02:47]} Rh3+ {[%emt 0:04:23]} 41. Ke2 {[%emt 0:00:15]} Re4+ {[%emt 0:00:16]} 42. Kf2 {[%emt 0:00:24]} Rxf4+ {[%emt 0:00:22]} 43. Kg2 {[%emt 0:00:04]} Rxa3 {[%emt 0:00:36]} 44. Rxe6+ {[%emt 0:00:24]} Kf5 {[%emt 0:02:01]} 45. Re7 {[%emt 0:00:22]} Rg4+ {[%emt 0:03:31]} 46. Kh2 {[%emt 0:01:27]} Ke4 {[%emt 0:07:03]} 47. e6 {[%emt 0:07:21]} Rh4+ {[%emt 0:01:46]} 48. Kg2 {[%emt 0:00:37]} Rg4+ {[%emt 0:00:08]} 49. Kh2 {[%emt 0:00:04]} Rg6 {[%emt 0:01:49]} 50. Rf7 {[%emt 0:02:42]} Rxe6 {[%emt 0:00:58]} 51. Rxg7 {[%emt 0:00:21]} Rh6+ {[%emt 0:00:10]} 52. Kg2 {[%emt 0:00:11]} Rg6+ {[%emt 0:00:15]} 53. Rxg6 {[%emt 0:00:08]} hxg6 {[%emt 0:00:03]} 54. Kf2 {[%emt 0:02:14]} g5 {[%emt 0:00:37]} 55. Re1+ {[%emt 0:00:03]} Kf4 {[%emt 0:00:15]} 56. Rd1 {[%emt 0:00:09]} Ra2+ {[%emt 0:00:34]} 57. Kg1 {[%emt 0:00:13]} Ke4 {[%emt 0:01:38]} 58. Re1+ {[%emt 0:00:09]} Kf3 {[%emt 0:01:44]} 59. Re5 {[%emt 0:00:17]} g4 {[%emt 0:00:25]} 60. Rf5+ {[%emt 0:01:09]} Kg3 {[%emt 0:00:56]} 61. Kf1 {[%emt 0:00:13]} d4 {[%emt 0:00:17]} 62. Rd5 {[%emt 0:00:14]} Kf3 {[%emt 0:00:47]} 63. Rf5+ {[%emt 0:00:18]} Ke4 {[%emt 0:00:04]} 64. Rg5 {[%emt 0:00:08]} d3 {[%emt 0:00:23]} 65. Rxg4+ {[%emt 0:00:13]} Kf3 {[%emt 0:00:04]} 0-1

[Event "29. Klatovy A 2023"]
[Site "Klatovy"]
[Date "2023.07.05"]
[Round "5.17"]
[White "Pycha, Patrik"]
[Black "Topencik, Bruno"]
[Result "1-0"]
[ECO "B12"]
[WhiteElo "2058"]
[BlackElo "1780"]
[PlyCount "95"]
[EventDate "2023.07.01"]
[EventType "swiss"]
[EventRounds "9"]
[EventCountry "CZE"]
[TimeControl "120+30"]

1. e4 {[%emt 0:00:02]} c6 {[%emt 0:00:08]} 2. d4 {[%emt 0:00:05]} d5 {[%emt 0:00:10]} 3. e5 {[%emt 0:00:53]} Bf5 {[%emt 0:00:08]} 4. h4 {[%emt 0:00:05]} h6 {[%emt 0:02:33]} 5. g4 {[%emt 0:01:05]} Be4 {[%emt 0:02:53]} 6. f3 {[%emt 0:00:06]} Bh7 {[%emt 0:00:52]} 7. e6 {[%emt 0:01:10]} Qd6 {[%emt 0:00:38]} 8. exf7+ {[%emt 0:00:29]} Kxf7 {[%emt 0:00:08]} 9. f4 {[%emt 0:01:50]} Nf6 {[%emt 0:01:37]} 10. Nf3 {[%emt 0:02:05]} Nxg4 {[%emt 0:00:58]} 11. Bh3 {[%emt 0:10:04]} h5 {[%emt 0:02:14]} 12. Ng5+ {[%emt 0:10:15]} Kg8 {[%emt 0:07:49]} 13. Qe2 {[%emt 0:20:10]} Bf5 {[%emt 0:07:38]} 14. Be3 {[%emt 0:02:29]} Nd7 {[%emt 0:07:54]} 15. Nd2 {[%emt 0:00:47]} e6 {[%emt 0:01:59]} 16. Ndf3 {[%emt 0:00:27]} Be7 {[%emt 0:05:08]} 17. O-O-O {[%emt 0:06:27]} Bxg5 {[%emt 0:08:22]} 18. hxg5 {[%emt 0:00:51]} g6 {[%emt 0:02:25]} 19. Rdg1 {[%emt 0:12:04]} Kg7 {[%emt 0:03:13]} 20. Bd2 {[%emt 0:01:47]} Rae8 {[%emt 0:11:22]} 21. Nh4 {[%emt 0:06:01]} Nb6 {[%emt 0:08:59]} 22. Bxg4 {[%emt 0:07:59]} Bxg4 {[%emt 0:03:31]} 23. Rxg4 {[%emt 0:00:15]} hxg4 {[%emt 0:00:42]} 24. Qd3 {[%emt 0:00:11]} Rxh4 {[%emt 0:18:29]} 25. Rxh4 {[%emt 0:00:08]} Qf8 {[%emt 0:11:25]} 26. Qe2 {[%emt 0:01:52]} Nd7 {[%emt 0:07:39]} 27. Qh2 {[%emt 0:00:47]} Qg8 {[%emt 0:01:07]} 28. Rxg4 {[%emt 0:06:06]} a5 {[%emt 0:02:40]} 29. Rh4 {[%emt 0:01:15]} b6 {[%emt 0:00:18]} 30. Rh6 {[%emt 0:00:27]} Re7 {[%emt 0:02:50]} 31. Qe2 {[%emt 0:05:06]} Qf7 {[%emt 0:01:59]} 32. Qh2 {[%emt 0:00:45]} Qg8 {[%emt 0:00:22]} 33. Qh3 {[%emt 0:05:13]} Re8 {[%emt 0:01:00]} 34. Qc3 {[%emt 0:03:05]} Rc8 {[%emt 0:00:57]} 35. a4 {[%emt 0:02:30]} Qf7 {[%emt 0:01:11]} 36. Qh3 {[%emt 0:00:38]} Nf8 {[%emt 0:01:13]} 37. Qb3 {[%emt 0:04:32]} Qc7 {[%emt 0:01:28]} 38. Kb1 {[%emt 0:00:34]} b5 {[%emt 0:02:37]} 39. Qh3 {[%emt 0:04:30]} bxa4 {[%emt 0:01:44]} 40. Qh4 {[%emt 0:02:56]} Rb8 {[%emt 0:01:04]} 41. f5 {[%emt 0:01:15]} exf5 {[%emt 0:00:41]} 42. Bf4 {[%emt 0:00:19]} Qb6 {[%emt 0:00:43]} 43. Be5+ {[%emt 0:00:45]} Kf7 {[%emt 0:00:28]} 44. Rh7+ {[%emt 0:00:18]} Nxh7 {[%emt 0:00:32]} 45. Qxh7+ {[%emt 0:00:05]} Ke6 {[%emt 0:00:06]} 46. Qxg6+ {[%emt 0:00:04]} Kd7 {[%emt 0:00:14]} 47. Qd6+ {[%emt 0:00:15]} Kc8 {[%emt 0:00:04]} 48. Qxb8+ {[%emt 0:00:08]} 1-0

[Event "29. Klatovy A 2023"]
[Site "Klatovy"]
[Date "2023.07.05"]
[Round "5.18"]
[White "Martirosyan, David"]
[Black "Pecka, Jan"]
[Result "1/2-1/2"]
[ECO "E36"]
[WhiteElo "1908"]
[BlackElo "2054"]
[PlyCount "66"]
[EventDate "2023.07.01"]
[EventType "swiss"]
[EventRounds "9"]
[EventCountry "CZE"]
[TimeControl "120+30"]

1. d4 {[%emt 0:04:11]} Nf6 {[%emt 0:00:30]} 2. c4 {[%emt 0:00:08]} e6 {[%emt 0:00:09]} 3. Nc3 {[%emt 0:00:21]} Bb4 {[%emt 0:00:07]} 4. Qc2 {[%emt 0:00:15]} O-O {[%emt 0:00:08]} 5. a3 {[%emt 0:00:05]} Bxc3+ {[%emt 0:00:20]} 6. Qxc3 {[%emt 0:00:09]} d5 {[%emt 0:00:21]} 7. Nf3 {[%emt 0:00:42]} dxc4 {[%emt 0:00:58]} 8. Qxc4 {[%emt 0:00:34]} b6 {[%emt 0:00:19]} 9. Bg5 {[%emt 0:01:03]} Nbd7 {[%emt 0:04:07]} 10. e3 {[%emt 0:02:55]} Bb7 {[%emt 0:04:21]} 11. Be2 {[%emt 0:10:59]} c5 {[%emt 0:04:11]} 12. O-O {[%emt 0:10:11]} Rc8 {[%emt 0:01:57]} 13. Rfd1 {[%emt 0:19:13]} Qe7 {[%emt 0:08:49]} 14. Qa4 {[%emt 0:09:07]} a6 {[%emt 0:00:59]} 15. dxc5 {[%emt 0:12:28]} b5 {[%emt 0:09:00]} 16. Qb4 {[%emt 0:05:13]} Qxc5 {[%emt 0:02:50]} 17. Qxc5 {[%emt 0:06:05]} Nxc5 {[%emt 0:13:41]} 18. Nd4 {[%emt 0:03:53]} Na4 {[%emt 0:03:56]} 19. Rab1 {[%emt 0:03:50]} Be4 {[%emt 0:07:46]} 20. Bd3 {[%emt 0:05:17]} Bxd3 {[%emt 0:01:52]} 21. Rxd3 {[%emt 0:00:06]} Nxb2 {[%emt 0:00:19]} 22. Rb3 {[%emt 0:00:29]} Nc4 {[%emt 0:04:12]} 23. Bxf6 {[%emt 0:01:01]} gxf6 {[%emt 0:00:07]} 24. Rc3 {[%emt 0:00:13]} Nb6 {[%emt 0:09:04]} 25. Nc6 {[%emt 0:03:36]} Kg7 {[%emt 0:06:17]} 26. Rbc1 {[%emt 0:01:11]} Rc7 {[%emt 0:16:27]} 27. Nb4 {[%emt 0:05:41]} Rxc3 {[%emt 0:01:25]} 28. Rxc3 {[%emt 0:00:04]} a5 {[%emt 0:02:00]} 29. Na6 {[%emt 0:00:34]} Ra8 {[%emt 0:01:55]} 30. Nc7 {[%emt 0:01:41]} b4 {[%emt 0:00:14]} 31. Rc6 {[%emt 0:00:24]} Rc8 {[%emt 0:01:49]} 32. axb4 {[%emt 0:00:58]} axb4 {[%emt 0:02:58]} 33. g3 {[%emt 0:00:47]} b3 {[%emt 0:01:02]} 1/2-1/2

[Event "29. Klatovy A 2023"]
[Site "Klatovy"]
[Date "2023.07.06"]
[Round "6.1"]
[White "Straka, Vojtech"]
[Black "Neuman, Petr"]
[Result "1-0"]
[ECO "A11"]
[WhiteElo "2433"]
[BlackElo "2398"]
[PlyCount "87"]
[EventDate "2023.07.01"]
[EventType "swiss"]
[EventRounds "9"]
[EventCountry "CZE"]
[TimeControl "120+30"]

1. c4 {[%emt 0:00:07]} c6 {[%emt 0:00:05]} 2. Nf3 {[%emt 0:00:18]} d5 {[%emt 0:00:05]} 3. e3 {[%emt 0:00:13]} Nf6 {[%emt 0:00:10]} 4. Nc3 {[%emt 0:00:17]} a6 {[%emt 0:00:09]} 5. Qc2 {[%emt 0:06:43]} g6 {[%emt 0:01:22]} 6. d4 {[%emt 0:00:28]} Bf5 {[%emt 0:01:32]} 7. Bd3 {[%emt 0:00:26]} Bxd3 {[%emt 0:00:25]} 8. Qxd3 {[%emt 0:00:02]} Bg7 {[%emt 0:01:18]} 9. e4 {[%emt 0:05:19]} Nxe4 {[%emt 0:03:01]} 10. Nxe4 {[%emt 0:01:49]} dxe4 {[%emt 0:00:04]} 11. Qxe4 {[%emt 0:00:10]} O-O {[%emt 0:03:48]} 12. O-O {[%emt 0:02:19]} Nd7 {[%emt 0:00:31]} 13. Bg5 {[%emt 0:01:42]} Nf6 {[%emt 0:00:41]} 14. Qe2 {[%emt 0:01:54]} e6 {[%emt 0:02:08]} 15. Rad1 {[%emt 0:01:03]} Qc7 {[%emt 0:03:39]} 16. Rfe1 {[%emt 0:08:22]} Rfe8 {[%emt 0:01:25]} 17. b3 {[%emt 0:16:05]} c5 {[%emt 0:15:20]} 18. Qe5 {[%emt 0:04:11]} Nd5 {[%emt 0:12:40]} 19. Qxc7 {[%emt 0:02:18]} Nxc7 {[%emt 0:00:04]} 20. dxc5 {[%emt 0:02:15]} a5 {[%emt 0:05:36]} 21. Rd7 {[%emt 0:01:46]} Na6 {[%emt 0:00:12]} 22. Be3 {[%emt 0:06:55]} f5 {[%emt 0:05:22]} 23. Rxb7 {[%emt 0:04:10]} e5 {[%emt 0:00:26]} 24. g3 {[%emt 0:03:23]} f4 {[%emt 0:07:27]} 25. gxf4 {[%emt 0:01:35]} exf4 {[%emt 0:00:05]} 26. Bxf4 {[%emt 0:00:09]} Rxe1+ {[%emt 0:00:23]} 27. Nxe1 {[%emt 0:00:01]} Nxc5 {[%emt 0:00:07]} 28. Rb8+ {[%emt 0:05:05]} Rxb8 {[%emt 0:00:06]} 29. Bxb8 {[%emt 0:00:02]} Bc3 {[%emt 0:01:23]} 30. Kf1 {[%emt 0:00:30]} a4 {[%emt 0:00:18]} 31. bxa4 {[%emt 0:01:00]} Nxa4 {[%emt 0:00:05]} 32. Nd3 {[%emt 0:00:45]} Kf7 {[%emt 0:00:59]} 33. Be5 {[%emt 0:04:36]} Ba5 {[%emt 0:00:08]} 34. Bd4 {[%emt 0:00:26]} Ke6 {[%emt 0:00:57]} 35. Nc5+ {[%emt 0:00:23]} Nxc5 {[%emt 0:00:16]} 36. Bxc5 {[%emt 0:00:02]} g5 {[%emt 0:00:11]} 37. f3 {[%emt 0:00:59]} h5 {[%emt 0:00:04]} 38. h3 {[%emt 0:00:44]} Kf5 {[%emt 0:00:04]} 39. Bd6 {[%emt 0:01:55]} g4 {[%emt 0:00:13]} 40. Kg2 {[%emt 0:00:16]} Ke6 {[%emt 0:02:15]} 41. Bg3 {[%emt 0:00:49]} gxf3+ {[%emt 0:01:09]} 42. Kxf3 {[%emt 0:00:11]} Kd7 {[%emt 0:00:36]} 43. Ke4 {[%emt 0:00:24]} Kc6 {[%emt 0:00:07]} 44. Bf2 {[%emt 0:00:18]} 1-0

[Event "29. Klatovy A 2023"]
[Site "Klatovy"]
[Date "2023.07.06"]
[Round "6.2"]
[White "Jurek, Josef"]
[Black "Slovak, Kilian"]
[Result "0-1"]
[ECO "E63"]
[WhiteElo "2251"]
[BlackElo "2297"]
[PlyCount "74"]
[EventDate "2023.07.01"]
[EventType "swiss"]
[EventRounds "9"]
[EventCountry "CZE"]
[TimeControl "120+30"]

1. Nf3 {[%emt 0:00:06]} Nf6 {[%emt 0:00:08]} 2. c4 {[%emt 0:00:22]} g6 {[%emt 0:00:05]} 3. d4 {[%emt 0:00:21]} Bg7 {[%emt 0:00:07]} 4. g3 {[%emt 0:00:18]} O-O {[%emt 0:00:14]} 5. Bg2 {[%emt 0:00:14]} d6 {[%emt 0:00:07]} 6. Nc3 {[%emt 0:00:25]} Nc6 {[%emt 0:00:07]} 7. O-O {[%emt 0:00:45]} a6 {[%emt 0:00:05]} 8. Bf4 {[%emt 0:01:20]} h6 {[%emt 0:00:16]} 9. h3 {[%emt 0:00:34]} Rb8 {[%emt 0:00:26]} 10. Rc1 {[%emt 0:02:01]} g5 {[%emt 0:00:31]} 11. Bd2 {[%emt 0:01:23]} e5 {[%emt 0:00:11]} 12. d5 {[%emt 0:08:58]} Ne7 {[%emt 0:00:24]} 13. e4 {[%emt 0:01:50]} b5 {[%emt 0:00:09]} 14. cxb5 {[%emt 0:04:50]} axb5 {[%emt 0:01:03]} 15. b4 {[%emt 0:00:57]} c6 {[%emt 0:00:09]} 16. dxc6 {[%emt 0:04:17]} Nxc6 {[%emt 0:00:09]} 17. a3 {[%emt 0:15:03]} Be6 {[%emt 0:01:14]} 18. Be3 {[%emt 0:09:20]} Qd7 {[%emt 0:07:52]} 19. h4 {[%emt 0:06:35]} g4 {[%emt 0:11:49]} 20. Nd2 {[%emt 0:01:17]} Nd4 {[%emt 0:00:58]} 21. Nd5 {[%emt 0:06:40]} Nxd5 {[%emt 0:17:07]} 22. exd5 {[%emt 0:00:40]} Bf5 {[%emt 0:00:14]} 23. Bxd4 {[%emt 0:09:29]} exd4 {[%emt 0:00:55]} 24. Nb3 {[%emt 0:02:37]} d3 {[%emt 0:01:42]} 25. Qd2 {[%emt 0:01:32]} Ra8 {[%emt 0:07:07]} 26. Na5 {[%emt 0:01:05]} Rfe8 {[%emt 0:01:52]} 27. Rfe1 {[%emt 0:00:55]} Rxe1+ {[%emt 0:09:53]} 28. Rxe1 {[%emt 0:00:28]} Re8 {[%emt 0:00:29]} 29. Nb3 {[%emt 0:14:54]} Rxe1+ {[%emt 0:18:19]} 30. Qxe1 {[%emt 0:00:11]} Qc8 {[%emt 0:01:28]} 31. Qe3 {[%emt 0:11:18]} Qc3 {[%emt 0:07:01]} 32. Nd2 {[%emt 0:01:17]} Qc1+ {[%emt 0:10:39]} 33. Nf1 {[%emt 0:05:31]} Bb2 {[%emt 0:05:26]} 34. Kh2 {[%emt 0:06:44]} Bxa3 {[%emt 0:05:00]} 35. f3 {[%emt 0:01:30]} Qxe3 {[%emt 0:00:59]} 36. Nxe3 {[%emt 0:00:10]} d2 {[%emt 0:00:12]} 37. fxg4 {[%emt 0:01:39]} Bxg4 {[%emt 0:00:14]} 0-1

[Event "29. Klatovy A 2023"]
[Site "Klatovy"]
[Date "2023.07.06"]
[Round "6.3"]
[White "Horak, Martin"]
[Black "Vorisek, Jaroslav"]
[Result "1-0"]
[ECO "C28"]
[WhiteElo "2266"]
[BlackElo "2260"]
[PlyCount "51"]
[EventDate "2023.07.01"]
[EventType "swiss"]
[EventRounds "9"]
[EventCountry "CZE"]
[TimeControl "120+30"]

1. e4 e5 2. Bc4 Nf6 3. d3 Nc6 4. Nc3 Na5 5. Bb3 Bc5 6. Nf3 Nxb3 7. axb3 Qe7 8. O-O h6 9. Na4 d6 10. c3 a5 11. Nxc5 dxc5 12. b4 cxb4 13. cxb4 Qxb4 14. Qc2 O-O 15. Qxc7 Qb5 16. Nxe5 Be6 17. Bd2 a4 18. Bc3 Bb3 19. Nf3 Ra6 20. Nd4 Qxd3 21. Qxb7 Bc4 22. Rfe1 a3 23. Rad1 a2 24. Rxd3 Bxd3 25. b4 Nxe4 26. Ba1 1-0

[Event "29. Klatovy A 2023"]
[Site "Klatovy"]
[Date "2023.07.06"]
[Round "6.4"]
[White "Hurdzan, Tomas"]
[Black "Kupsa, Matej 2001"]
[Result "1-0"]
[ECO "C11"]
[WhiteElo "2309"]
[BlackElo "2145"]
[PlyCount "45"]
[EventDate "2023.07.01"]
[EventType "swiss"]
[EventRounds "9"]
[EventCountry "CZE"]
[TimeControl "120+30"]

1. e4 e6 2. d4 d5 3. Nc3 Nf6 4. e5 Nfd7 5. f4 c5 6. Nf3 Nc6 7. Be3 Be7 8. Qd2 O-O 9. dxc5 Qa5 10. a3 Bxc5 11. Bxc5 Qxc5 12. Bd3 a5 13. O-O-O Rb8 14. Rhe1 b5 15. Bxh7+ Kh8 16. Ng5 b4 17. Na4 bxa3 18. Nxc5 a2 19. Qd3 a1=Q+ 20. Kd2 Qxb2 21. Qh3 Qb4+ 22. Ke2 Re8 23. Nxf7# 1-0

[Event "29. Klatovy A 2023"]
[Site "Klatovy"]
[Date "2023.07.06"]
[Round "6.5"]
[White "Flajsman, Pavel"]
[Black "Soural, Jan"]
[Result "0-1"]
[ECO "D85"]
[WhiteElo "2192"]
[BlackElo "2176"]
[PlyCount "86"]
[EventDate "2023.07.01"]
[EventType "swiss"]
[EventRounds "9"]
[EventCountry "CZE"]
[TimeControl "120+30"]

1. d4 {[%emt 0:00:04]} Nf6 {[%emt 0:00:08]} 2. c4 {[%emt 0:00:09]} g6 {[%emt 0:00:12]} 3. Nc3 {[%emt 0:00:13]} d5 {[%emt 0:01:12]} 4. cxd5 {[%emt 0:00:07]} Nxd5 {[%emt 0:00:06]} 5. e4 {[%emt 0:00:04]} Nxc3 {[%emt 0:00:05]} 6. bxc3 {[%emt 0:00:02]} Bg7 {[%emt 0:00:10]} 7. Qa4+ {[%emt 0:00:09]} Nd7 {[%emt 0:00:34]} 8. Nf3 {[%emt 0:00:17]} O-O {[%emt 0:00:21]} 9. Be2 {[%emt 0:00:14]} c5 {[%emt 0:05:40]} 10. Qa3 {[%emt 0:00:33]} e6 {[%emt 0:08:54]} 11. O-O {[%emt 0:04:34]} b6 {[%emt 0:09:14]} 12. e5 {[%emt 0:06:41]} Bb7 {[%emt 0:01:53]} 13. Bg5 {[%emt 0:02:26]} Qc7 {[%emt 0:09:04]} 14. Rac1 {[%emt 0:04:25]} h6 {[%emt 0:05:39]} 15. Be3 {[%emt 0:16:49]} a6 {[%emt 0:07:36]} 16. Qb2 {[%emt 0:22:14]} c4 {[%emt 0:03:28]} 17. h4 {[%emt 0:17:53]} b5 {[%emt 0:10:28]} 18. Qd2 {[%emt 0:03:29]} Kh7 {[%emt 0:13:56]} 19. Bf4 {[%emt 0:21:07]} Nb6 {[%emt 0:03:24]} 20. Nh2 {[%emt 0:02:55]} Nd5 {[%emt 0:12:03]} 21. Bg3 {[%emt 0:00:05]} Qe7 {[%emt 0:08:00]} 22. Bf3 {[%emt 0:01:00]} Rfc8 {[%emt 0:00:27]} 23. h5 {[%emt 0:06:27]} a5 {[%emt 0:02:58]} 24. Be4 {[%emt 0:06:50]} b4 {[%emt 0:01:59]} 25. Qc2 {[%emt 0:03:17]} Nxc3 {[%emt 0:02:29]} 26. hxg6+ {[%emt 0:00:14]} Kh8 {[%emt 0:01:10]} 27. Bxb7 {[%emt 0:01:09]} Qxb7 {[%emt 0:00:05]} 28. Rfe1 {[%emt 0:02:30]} Nxa2 {[%emt 0:09:32]} 29. Qxa2 {[%emt 0:04:06]} c3 {[%emt 0:00:06]} 30. Bf4 {[%emt 0:02:14]} b3 {[%emt 0:02:19]} 31. Qb1 {[%emt 0:01:05]} c2 {[%emt 0:02:36]} 32. Qb2 {[%emt 0:00:02]} a4 {[%emt 0:02:23]} 33. Re3 {[%emt 0:00:05]} fxg6 {[%emt 0:01:37]} 34. Rh3 {[%emt 0:00:27]} Rab8 {[%emt 0:04:05]} 35. Ra1 {[%emt 0:00:44]} Qb4 {[%emt 0:01:32]} 36. Bc1 {[%emt 0:01:07]} Bf8 {[%emt 0:00:36]} 37. Rxh6+ {[%emt 0:02:23]} Bxh6 {[%emt 0:00:56]} 38. Bxh6 {[%emt 0:00:04]} a3 {[%emt 0:01:53]} 39. Rxa3 {[%emt 0:00:08]} c1=Q+ {[%emt 0:00:28]} 40. Bxc1 {[%emt 0:00:20]} Qe1+ {[%emt 0:00:04]} 41. Nf1 {[%emt 0:00:03]} Qxc1 {[%emt 0:00:45]} 42. Qe2 {[%emt 0:01:16]} Qxa3 {[%emt 0:00:06]} 43. Qf3 {[%emt 0:00:08]} Qe7 {[%emt 0:00:39]} 0-1

[Event "29. Klatovy A 2023"]
[Site "Klatovy"]
[Date "2023.07.06"]
[Round "6.6"]
[White "Palek, Miroslav"]
[Black "Janous, Marek"]
[Result "1/2-1/2"]
[ECO "B47"]
[WhiteElo "2091"]
[BlackElo "2185"]
[PlyCount "74"]
[EventDate "2023.07.01"]
[EventType "swiss"]
[EventRounds "9"]
[EventCountry "CZE"]
[TimeControl "120+30"]

1. e4 {[%emt 0:00:04]} c5 {[%emt 0:01:38]} 2. Nc3 {[%emt 0:00:36]} Nc6 {[%emt 0:01:42]} 3. g3 {[%emt 0:00:19]} e6 {[%emt 0:00:51]} 4. Bg2 {[%emt 0:00:14]} Nf6 {[%emt 0:00:14]} 5. Nge2 {[%emt 0:00:58]} Be7 {[%emt 0:03:17]} 6. O-O {[%emt 0:00:59]} a6 {[%emt 0:03:41]} 7. d4 {[%emt 0:07:39]} cxd4 {[%emt 0:01:19]} 8. Nxd4 {[%emt 0:00:08]} Qc7 {[%emt 0:01:07]} 9. Re1 {[%emt 0:14:20]} Nxd4 {[%emt 0:58:57]} 10. Qxd4 {[%emt 0:01:06]} Bc5 {[%emt 0:00:30]} 11. Qd1 {[%emt 0:06:59]} d6 {[%emt 0:00:58]} 12. Na4 {[%emt 0:07:08]} Ba7 {[%emt 0:02:52]} 13. Be3 {[%emt 0:03:26]} Bd7 {[%emt 0:10:04]} 14. Bxa7 {[%emt 0:10:21]} Rxa7 {[%emt 0:01:01]} 15. Qd4 {[%emt 0:02:52]} b5 {[%emt 0:01:51]} 16. Nc3 {[%emt 0:00:37]} e5 {[%emt 0:03:14]} 17. Qd2 {[%emt 0:02:20]} b4 {[%emt 0:10:55]} 18. Nd1 {[%emt 0:02:59]} Qc5 {[%emt 0:04:24]} 19. a3 {[%emt 0:00:47]} bxa3 {[%emt 0:01:39]} 20. Rxa3 {[%emt 0:00:26]} Be6 {[%emt 0:03:47]} 21. Ree3 {[%emt 0:08:34]} O-O {[%emt 0:05:07]} 22. Red3 {[%emt 0:01:55]} Rd8 {[%emt 0:02:13]} 23. Ra5 {[%emt 0:07:20]} Qc6 {[%emt 0:02:27]} 24. Rxe5 {[%emt 0:15:33]} Rad7 {[%emt 0:05:30]} 25. Ra5 {[%emt 0:01:28]} Nxe4 {[%emt 0:00:52]} 26. Qe1 {[%emt 0:06:50]} d5 {[%emt 0:00:11]} 27. c3 {[%emt 0:03:48]} Nc5 {[%emt 0:01:41]} 28. Re3 {[%emt 0:01:29]} Nb3 {[%emt 0:00:05]} 29. Ra3 {[%emt 0:00:37]} Qb6 {[%emt 0:00:02]} 30. Rd3 {[%emt 0:03:29]} h6 {[%emt 0:00:29]} 31. Ne3 {[%emt 0:01:07]} d4 {[%emt 0:00:19]} 32. cxd4 {[%emt 0:01:30]} Rxd4 {[%emt 0:00:40]} 33. Rxd4 {[%emt 0:00:25]} Nxd4 {[%emt 0:01:27]} 34. b4 {[%emt 0:02:03]} Rc8 {[%emt 0:00:36]} 35. Ra1 {[%emt 0:01:22]} Qb5 {[%emt 0:00:19]} 36. Qd1 {[%emt 0:01:02]} Nb3 {[%emt 0:01:34]} 37. Bf1 {[%emt 0:01:24]} Qxb4 {[%emt 0:02:03]} 1/2-1/2

[Event "29. Klatovy A 2023"]
[Site "Klatovy"]
[Date "2023.07.06"]
[Round "6.7"]
[White "Jun, Rudolf"]
[Black "Kishore, Kumar Jaganathan"]
[Result "1-0"]
[ECO "B30"]
[WhiteElo "2223"]
[BlackElo "1860"]
[PlyCount "69"]
[EventDate "2023.07.01"]
[EventType "swiss"]
[EventRounds "9"]
[EventCountry "CZE"]
[TimeControl "120+30"]

1. e4 {[%emt 0:00:00]} c5 {[%emt 0:03:35]} 2. Nf3 {[%emt 0:01:54]} Nc6 {[%emt 0:00:15]} 3. c4 {[%emt 0:00:46]} e5 {[%emt 0:02:30]} 4. Nc3 {[%emt 0:00:05]} Nf6 {[%emt 0:00:21]} 5. d3 {[%emt 0:00:30]} d6 {[%emt 0:00:10]} 6. a3 {[%emt 0:00:21]} Be7 {[%emt 0:05:57]} 7. Be2 {[%emt 0:00:00]} Be6 {[%emt 0:02:04]} 8. O-O {[%emt 0:03:31]} O-O {[%emt 0:00:00]} 9. Rb1 {[%emt 0:06:09]} Nd4 {[%emt 0:00:00]} 10. Nxd4 {[%emt 0:06:25]} cxd4 {[%emt 0:00:00]} 11. Nd5 {[%emt 0:04:18]} Nxd5 {[%emt 0:00:00]} 12. cxd5 {[%emt 0:01:47]} Bd7 {[%emt 0:00:00]} 13. f4 {[%emt 0:01:49]} Rc8 {[%emt 0:00:00]} 14. Bd2 {[%emt 0:13:54]} f5 {[%emt 0:00:00]} 15. fxe5 {[%emt 0:00:00]} dxe5 {[%emt 0:00:00]} 16. exf5 {[%emt 0:00:00]} Rxf5 {[%emt 0:00:00]} 17. Rxf5 {[%emt 0:00:00]} Bxf5 {[%emt 0:00:00]} 18. Bg4 {[%emt 0:00:00]} Qd7 {[%emt 0:00:00]} 19. Bxf5 {[%emt 0:00:00]} Qxf5 {[%emt 0:00:00]} 20. Rc1 {[%emt 0:00:00]} Rd8 {[%emt 0:00:00]} 21. Qe2 {[%emt 0:00:00]} Bd6 {[%emt 0:00:00]} 22. Rf1 {[%emt 0:00:00]} Qd7 {[%emt 0:00:00]} 23. Qe4 {[%emt 0:00:00]} Rc8 {[%emt 0:00:00]} 24. h3 {[%emt 0:00:00]} Rc2 {[%emt 0:00:00]} 25. Bb4 {[%emt 0:00:00]} h6 {[%emt 0:00:00]} 26. Bxd6 {[%emt 0:00:00]} Qxd6 {[%emt 0:00:00]} 27. Rf5 {[%emt 0:00:00]} Rxb2 {[%emt 0:00:00]} 28. Rxe5 {[%emt 0:00:00]} Rb1+ {[%emt 0:00:00]} 29. Kf2 {[%emt 0:00:00]} Rb2+ {[%emt 0:00:00]} 30. Kg1 {[%emt 0:00:00]} Rb1+ {[%emt 0:00:00]} 31. Kf2 {[%emt 0:00:00]} Rb2+ {[%emt 0:00:00]} 32. Kf3 {[%emt 0:00:00]} g6 {[%emt 0:00:00]} 33. Re6 {[%emt 0:00:00]} Qf8+ {[%emt 0:00:00]} 34. Kg3 {[%emt 0:00:00]} Qf2+ {[%emt 0:00:00]} 35. Kh2 {[%emt 0:00:00]} 1-0